fUSD/lending_fUSD_20250618
["ID","MTS","AMOUNT","RATE_DAILY","PERIOD"]
[366356800,1750206647338,-490.0,0.00016438,2]
[366356801,1750206647349,-551.7,0.00016438,2]
[366356802,1750206647362,-490.0,0.00016438,2]
[366356803,1750206647371,-1644.08,0.00016438,2]
[366356804,1750206647381,-490.0,0.00016438,2]
[366356805,1750206647391,-490.0,0.00016438,2]
[366356806,1750206647400,-1449.61,0.00016438,2]
[366356807,1750206647410,-490.0,0.00016438,2]
[366356808,1750206647419,-490.0,0.00016438,2]
[366356809,1750206647429,-791.51,0.00016438,2]
[366356810,1750206647439,-808.77,0.00016438,2]
[366356811,1750206647448,-1520.49,0.00016438,2]
[366356812,1750206647458,-653.07,0.00016438,2]
[366356813,1750206647467,-151.0,0.00016438,2]
[366356814,1750206647477,-151.0,0.00016438,2]
[366356815,1750206647486,-1102.38,0.00016438,2]
[366356816,1750206647495,-490.0,0.00016438,2]
[366356817,1750206647504,-490.0,0.00016438,2]
[366356818,1750206647514,-928.36,0.00016438,2]
[366356819,1750206647524,-490.0,0.00016438,2]
[366356820,1750206647534,-490.0,0.00016438,2]
[366356821,1750206647544,-490.0,0.00016438,2]
[366356822,1750206647554,-490.0,0.00016438,2]
[366356823,1750206647564,-490.0,0.00016438,2]
[366356824,1750206647574,-490.0,0.00016438,2]
[366356825,1750206647584,-151.0,0.00016438,2]
[366356826,1750206647593,-466.66874127,0.00016438,2]
[366356827,1750206647602,-2497.96,0.00016438,2]
[366356828,1750206647612,-490.0,0.00016438,2]
[366356829,1750206647621,-490.0,0.00016438,2]
[366356830,1750206647631,-490.0,0.00016438,2]
[366356831,1750206647641,-151.0,0.00016438,2]
[366356832,1750206647651,-490.0,0.00016438,2]
[366356833,1750206647868,-490.0,0.00016438,2]
[366356834,1750206647878,-490.0,0.00016438,2]
[366356835,1750206647888,-692.35,0.00016438,2]
[366356836,1750206647897,-490.0,0.00016438,2]
[366356837,1750206648054,-490.0,0.00016438,2]
[366356838,1750206648064,-490.0,0.00016438,2]
[366356839,1750206648073,-1591.05,0.00016438,2]
[366356840,1750206648084,-2193.46,0.00016438,2]
[366356841,1750206648094,-616.75,0.00016438,2]
[366356842,1750206648103,-855.67,0.00016438,2]
[366356843,1750206648113,-1902.24,0.00016438,2]
[366356844,1750206648123,-911.23,0.00016438,2]
[366356845,1750206648133,-490.0,0.00016438,2]
[366356846,1750206648143,-490.0,0.00016438,2]
[366356847,1750206648153,-490.0,0.00016438,2]
[366356848,1750206648163,-553.65,0.00016438,2]
[366356849,1750206648173,-490.0,0.00016438,2]
[366356850,1750206648183,-490.0,0.00016438,2]
[366356851,1750206648195,-490.0,0.00016438,2]
[366356852,1750206648205,-490.0,0.00016438,2]
[366356853,1750206648215,-490.0,0.00016438,2]
[366356854,1750206648225,-752.83,0.00016438,2]
[366356855,1750206648235,-490.0,0.00016438,2]
[366356856,1750206648246,-2055.29,0.00016438,2]
[366356857,1750206648256,-1292.65,0.00016438,2]
[366356858,1750206648267,-151.0,0.00016438,2]
[366356859,1750206648277,-151.0,0.00016438,2]
[366356860,1750206648287,-151.0,0.00016438,2]
[366356861,1750206648297,-151.0,0.00016438,2]
[366356862,1750206648308,-151.0,0.00016438,2]
[366356863,1750206648318,-490.0,0.00016438,2]
[366356864,1750206648328,-151.0,0.00016438,2]
[366356865,1750206648339,-490.0,0.00016438,2]
[366356866,1750206648349,-490.0,0.00016438,2]
[366356867,1750206648363,-574.39,0.00016438,2]
[366356868,1750206648373,-490.0,0.00016438,2]
[366356869,1750206648385,-752.28,0.00016438,2]
[366356870,1750206648395,-151.0,0.00016438,2]
[366356871,1750206648407,-2999.17,0.00016438,2]
[366356872,1750206648418,-151.0,0.00016438,2]
[366356873,1750206648429,-490.0,0.00016438,2]
[366356874,1750206648439,-518.83,0.00016438,2]
[366356875,1750206648449,-1419.44,0.00016438,2]
[366356876,1750206648459,-670.9,0.00016438,2]
[366356877,1750206648470,-490.0,0.00016438,2]
[366356878,1750206648480,-490.0,0.00016438,2]
[366356879,1750206648490,-151.0,0.00016438,2]
[366356880,1750206648501,-151.0,0.00016438,2]
[366356881,1750206648511,-151.0,0.00016438,2]
[366356882,1750206648522,-490.0,0.00016438,2]
[366356883,1750206648532,-490.0,0.00016438,2]
[366356884,1750206648543,-490.0,0.00016438,2]
[366356885,1750206648553,-658.72,0.00016438,2]
[366356886,1750206648563,-151.9298771,0.00016438,2]
[366356887,1750206648573,-2354.62,0.00016438,2]
[366356888,1750206648583,-490.0,0.00016438,2]
[366356889,1750206648594,-1520.14,0.00016438,2]
[366356890,1750206648604,-490.0,0.00016438,2]
[366356891,1750206648615,-2903.97,0.00016438,2]
[366356892,1750206648625,-490.0,0.00016438,2]
[366356893,1750206648636,-151.0,0.00016438,2]
[366356894,1750206648646,-490.0,0.00016438,2]
[366356895,1750206648656,-490.0,0.00016438,2]
[366356896,1750206648666,-795.35,0.00016438,2]
[366356897,1750206648676,-747.36,0.00016438,2]
[366356898,1750206648686,-490.0,0.00016438,2]
[366356899,1750206648696,-490.0,0.00016438,2]
[366356900,1750206648705,-1494.76,0.00016438,2]
[366356901,1750206648715,-713.6,0.00016438,2]
[366356902,1750206648724,-586.78,0.00016438,2]
[366356903,1750206648734,-2089.03,0.00016438,2]
[366356904,1750206648742,-490.0,0.00016438,2]
[366356905,1750206648751,-151.0,0.00016438,2]
[366356906,1750206648760,-490.0,0.00016438,2]
[366356907,1750206648769,-151.0,0.00016438,2]
[366356908,1750206648778,-490.0,0.00016438,2]
[366356909,1750206648789,-806.07,0.00016438,2]
[366356910,1750206648798,-713.05,0.00016438,2]
[366356911,1750206648807,-490.0,0.00016438,2]
[366356912,1750206648816,-490.0,0.00016438,2]
[366356913,1750206648825,-490.0,0.00016438,2]
[366356914,1750206648833,-2085.9,0.00016438,2]
[366356915,1750206648843,-182.34958425,0.00016438,2]
[366356916,1750206648853,-1394.44,0.00016438,2]
[366356917,1750206648862,-1857.61,0.00016438,2]
[366356918,1750206648872,-490.0,0.00016438,2]
[366356919,1750206648882,-490.0,0.00016438,2]
[366356920,1750206648892,-490.0,0.00016438,2]
[366356921,1750206648902,-490.0,0.00016438,2]
[366356922,1750206648911,-490.0,0.00016438,2]
[366356923,1750206648918,-490.0,0.00016438,2]
[366356924,1750206648926,-490.0,0.00016438,2]
[366356925,1750206648936,-490.0,0.00016438,2]
[366356926,1750206648946,-490.0,0.00016438,2]
[366356927,1750206648956,-978.23,0.00016438,2]
[366356928,1750206648965,-151.0,0.00016438,2]
[366356929,1750206648975,-151.0,0.00016438,2]
[366356930,1750206648984,-676.18,0.00016438,2]
[366356931,1750206648994,-220.328696,0.00016438,2]
[366356932,1750206649004,-151.0,0.00016438,2]
[366356933,1750206649013,-151.0,0.00016438,2]
[366356934,1750206649023,-731.67,0.00016438,2]
[366356935,1750206649033,-490.0,0.00016438,2]
[366356936,1750206649043,-544.66,0.00016438,2]
[366356937,1750206649052,-490.0,0.00016438,2]
[366356938,1750206649062,-1101.98,0.00016438,2]
[366356939,1750206649071,-608.96,0.00016438,2]
[366356940,1750206649081,-490.0,0.00016438,2]
[366356941,1750206649092,-490.0,0.00016438,2]
[366356942,1750206649101,-841.42,0.00016438,2]
[366356943,1750206649111,-885.09,0.00016438,2]
[366356944,1750206649120,-680.44,0.00016438,2]
[366356945,1750206649130,-490.0,0.00016438,2]
[366356946,1750206649140,-490.0,0.00016438,2]
[366356947,1750206649149,-490.0,0.00016438,2]
[366356948,1750206649159,-490.0,0.00016438,2]
[366356949,1750206649169,-490.86,0.00016438,2]
[366356950,1750206649179,-513.96,0.00016438,2]
[366356951,1750206649188,-490.0,0.00016438,2]
[366356952,1750206649198,-465.00597714,0.00016438,2]
[366356953,1750206649208,-546.19,0.00016438,2]
[366356954,1750206649219,-490.0,0.00016438,2]
[366356955,1750206649229,-1886.41,0.00016438,2]
[366356956,1750206649239,-500.0,0.00016438,2]
[366356957,1750206649249,-500.0,0.00016438,2]
[366356958,1750206649259,-490.0,0.00016438,2]
[366356959,1750206649269,-490.0,0.00016438,2]
[366356960,1750206649279,-490.0,0.00016438,2]
[366356961,1750206649289,-490.0,0.00016438,2]
[366356962,1750206649299,-633.04,0.00016438,2]
[366356963,1750206649309,-490.0,0.00016438,2]
[366356964,1750206649319,-597.54,0.00016438,2]
[366356965,1750206649329,-554.41,0.00016438,2]
[366356966,1750206649339,-490.0,0.00016438,2]
[366356967,1750206649351,-1067.38,0.00016438,2]
[366356968,1750206649362,-1510.65,0.00016438,2]
[366356969,1750206649373,-490.0,0.00016438,2]
[366356970,1750206649383,-1463.85,0.00016438,2]
[366356971,1750206649394,-490.0,0.00016438,2]
[366356972,1750206649404,-151.0,0.00016438,2]
[366356973,1750206649415,-490.0,0.00016438,2]
[366356974,1750206649425,-1967.6,0.00016438,2]
[366356975,1750206649435,-535.06,0.00016438,2]
[366356976,1750206649445,-490.0,0.00016438,2]
[366356977,1750206649455,-509.79,0.00016438,2]
[366356978,1750206649465,-151.0,0.00016438,2]
[366356979,1750206649475,-230.61415673,0.00016438,2]
[366356980,1750206650457,-413.83278376,0.00016438,2]
[366356981,1750206650503,-2131.86305951,0.00016438,2]
[366356982,1750206650512,-151.0,0.00016438,2]
[366356983,1750206650522,-1653.9941651,0.00016438,2]
[366356984,1750206650534,-342.66337,0.00016438,2]
[366356985,1750206651992,-475.8424649,0.00016438,2]
[366356986,1750206652002,-224.394778,0.00016438,2]
[366356987,1750206652012,-490.0,0.00016438,2]
[366356988,1750206652022,-91.24115591,0.00016438,2]
[366356989,1750206652112,-59.75884409,0.00016438,2]
[366356990,1750206652122,-151.0,0.00016438,2]
[366356991,1750206652132,-490.0,0.00016438,2]
[366356992,1750206652142,-151.0,0.00016438,2]
[366356993,1750206652151,-552.46229094,0.00016438,2]
[366356994,1750206652161,-151.0,0.00016438,2]
[366356995,1750206652171,-504.81,0.00016438,2]
[366356996,1750206652181,-393.46357316,0.00016438,2]
[366356997,1750206652190,-490.0,0.00016438,2]
[366356998,1750206652200,-502.16065372,0.00016438,2]
[366356999,1750206652210,-151.0,0.00016438,2]
[366357000,1750206652220,-151.0,0.00016438,2]
[366357001,1750206652231,-464.04168194,0.00016438,2]
[366357002,1750206652241,-1489.11,0.00016438,2]
[366357003,1750206652251,-151.0,0.00016438,2]
[366357004,1750206652262,-690.24,0.00016438,2]
[366357005,1750206652272,-2824.36,0.00016438,2]
[366357006,1750206652282,-490.0,0.00016438,2]
[366357007,1750206652292,-490.0,0.00016438,2]
[366357008,1750206652302,-500.0,0.00016438,2]
[366357009,1750206652312,-151.0,0.00016438,2]
[366357010,1750206652322,-490.0,0.00016438,2]
[366357011,1750206652333,-151.0,0.00016438,2]
[366357012,1750206652342,-747.35,0.00016438,2]
[366357013,1750206652353,-290.686338,0.00016438,2]
[366357014,1750206652372,-490.0,0.00016438,2]
[366357015,1750206652381,-490.0,0.00016438,2]
[366357016,1750206652392,-468.25841067,0.00016438,2]
[366357020,1750206938710,335.2,0.00024658,120]
[366357332,1750207832621,-201.0,0.00013464,2]
[366357334,1750207832632,-211.09,0.00013699,2]
[366357336,1750207832643,-301.81783571,0.00014358,2]
[366357338,1750207832654,-742.81520405,0.00014358,2]
[366357340,1750207832666,-1141.939473,0.00014358,2]
[366357343,1750207832686,-2019.11445745,0.00014358,2]
[366357346,1750207832697,-424.81935488,0.00014358,2]
[366357348,1750207832709,-373.86756896,0.00014358,2]
[366357350,1750207832719,-636.80135013,0.00014358,2]
[366357352,1750207832731,-4363.19864987,0.00014358,2]
[366357354,1750207832740,-5000.0,0.00014358,2]
[366357356,1750207832750,-5000.0,0.00014358,2]
[366357358,1750207832759,-201.0,0.00014688,3]
[366357360,1750207832769,-2550.454084,0.00015211,2]
[366357362,1750207832778,-500.0,0.00015288,2]
[366357364,1750207832788,-200.0,0.00015391,7]
[366357366,1750207832798,-1000.0,0.00015406,2]
[366357368,1750207832808,-263.89,0.00015434,2]
[366357370,1750207832817,-500.0,0.00015467,2]
[366357372,1750207832827,-316.0,0.00015699,2]
[366357374,1750207832836,-797.62,0.00015741,2]
[366357376,1750207832846,-2329.74,0.00015778,2]
[366357378,1750207832855,-300.0,0.000158,5]
[366357380,1750207832864,-1200.0,0.00015877,2]
[366357382,1750207832874,-354.83,0.00015878,2]
[366357384,1750207832884,-354.83,0.00015878,2]
[366357386,1750207832893,-1164.87,0.00015878,2]
[366357388,1750207832903,-207.4,0.0001589,2]
[366357390,1750207832913,-600.0,0.000159,5]
[366357392,1750207832922,-3536.50790657,0.000159,2]
[366357394,1750207832931,-201.0,0.00015913,5]
[366357396,1750207832941,-499.7,0.00016026,2]
[366357398,1750207832950,-492.36,0.00016026,2]
[366357400,1750207832959,-3536.50790629,0.00016038,2]
[366357402,1750207832968,-151.0,0.00016159,2]
[366357405,1750207832978,-699.13975285,0.00016159,2]
[366357406,1750207832987,-497.1,0.00016168,2]
[366357409,1750207832997,-300.85,0.00016168,2]
[366357411,1750207833007,-301.09,0.00016168,2]
[366357413,1750207833016,-506.21,0.00016169,2]
[366357414,1750207833026,-501.51,0.00016169,2]
[366357415,1750207833036,-491.17,0.00016169,2]
[366357416,1750207833046,-505.59,0.00016169,2]
[366357417,1750207833057,-302.47,0.00016169,2]
[366357418,1750207833067,-490.57,0.00016169,2]
[366357419,1750207833077,-304.54,0.00016169,2]
[366357420,1750207833087,-508.7,0.00016169,2]
[366357421,1750207833097,-505.44,0.00016169,2]
[366357422,1750207833108,-303.34,0.00016169,2]
[366357423,1750207833117,-495.83,0.00016169,2]
[366357424,1750207833128,-504.6,0.00016169,2]
[366357425,1750207833138,-303.74,0.00016169,2]
[366357426,1750207833148,-503.42,0.00016169,2]
[366357427,1750207833159,-496.68,0.00016169,2]
[366357428,1750207833168,-302.57,0.00016169,2]
[366357429,1750207833178,-3536.50790629,0.00016176,2]
[366357430,1750207833187,-770.090235,0.00016269,2]
[366357431,1750207833198,-495.0,0.00016269,2]
[366357432,1750207833211,-150.83,0.00016269,2]
[366357433,1750207833220,-508.18,0.00016269,2]
[366357434,1750207833230,-301.06,0.00016269,2]
[366357435,1750207833240,-497.86,0.00016269,2]
[366357436,1750207833250,-509.11,0.00016269,2]
[366357437,1750207833260,-301.97,0.00016269,2]
[366357438,1750207833270,-498.78,0.00016269,2]
[366357439,1750207833280,-170.85,0.00016274,2]
[366357440,1750207833289,-170.85,0.00016274,2]
[366357441,1750207833299,-170.34,0.00016274,2]
[366357442,1750207833310,-200.0,0.00016278,2]
[366357443,1750207833319,-170.85,0.000163,2]
[366357444,1750207833328,-3536.50790629,0.00016314,2]
[366357445,1750207833338,-176.98865538,0.00016338,2]
[366357446,1750207833348,-163.35540724,0.00016338,2]
[366357447,1750207833358,-1610.95704234,0.00016338,2]
[366357448,1750207833368,-153.08541945,0.00016338,2]
[366357449,1750207833378,-301.56,0.00016338,2]
[366357450,1750207833391,-504.19,0.00016338,2]
[366357451,1750207833401,-497.04,0.00016338,2]
[366357452,1750207833410,-304.75,0.00016338,2]
[366357453,1750207833420,-432.9253,0.00016338,2]
[366357454,1750207833430,-200.0,0.00016363,2]
[366357455,1750207833441,-1610.95704225,0.00016393,2]
[366357456,1750207833451,-354.83,0.000164,2]
[366357457,1750207833461,-354.83,0.000164,2]
[366357458,1750207833471,-354.83,0.000164,2]
[366357459,1750207833480,-197.33653468,0.00016428,2]
[366357460,1750207833490,-295.08,0.00016428,2]
[366357461,1750207833500,-802.0,0.00016437,2]
[366357462,1750207833510,-143.4375679,0.00016437,2]
[366357463,1750207833523,-550.99707701,0.00016437,2]
[366357464,1750207833534,-465.56535509,0.00016437,2]
[366357465,1750207833544,-54.71856167,0.00016437,2]
[366357466,1750207833573,-132.03143833,0.00016437,2]
[366357467,1750207833582,-887.08847172,0.00016438,2]
[366357483,1750207840357,-155.24362204,0.00016338,2]
[366357484,1750207840368,-1249.59652058,0.00016438,2]
[366357485,1750207840379,-356.4600005,0.00016438,2]
[366357486,1750207840570,-2868.60583114,0.00016438,2]
[366357493,1750207843240,-453.0,0.00016438,2]
[366357494,1750207843254,-371.37569924,0.00016438,2]
[366357495,1750207843266,-3455.27680065,0.00016438,2]
[366357507,1750207846137,-9109.13984288,0.00016438,2]
[366357508,1750207846147,-72629.57394988,0.00016438,2]
[366357509,1750207846348,-16835.60068925,0.00016438,2]
[366357510,1750207846359,-796.0,0.00016438,2]
[366357511,1750207846368,-151.0,0.00016438,2]
[366357512,1750207846378,-151.0,0.00016438,2]
[366357513,1750207846387,-151.0,0.00016438,2]
[366357514,1750207846396,-151.0,0.00016438,2]
[366357515,1750207846406,-151.0,0.00016438,2]
[366357517,1750207846415,-151.0,0.00016438,2]
[366357519,1750207846424,-151.0,0.00016438,2]
[366357520,1750207846434,-151.0,0.00016438,2]
[366357521,1750207846443,-151.0,0.00016438,2]
[366357522,1750207846453,-151.0,0.00016438,2]
[366357523,1750207846462,-151.0,0.00016438,2]
[366357524,1750207846472,-151.0,0.00016438,2]
[366357525,1750207846482,-151.0,0.00016438,2]
[366357526,1750207846491,-151.0,0.00016438,2]
[366357527,1750207846500,-151.0,0.00016438,2]
[366357528,1750207846510,-151.0,0.00016438,2]
[366357529,1750207846519,-151.0,0.00016438,2]
[366357530,1750207846529,-151.0,0.00016438,2]
[366357531,1750207846539,-151.0,0.00016438,2]
[366357532,1750207846548,-151.0,0.00016438,2]
[366357533,1750207846558,-151.0,0.00016438,2]
[366357534,1750207846568,-151.0,0.00016438,2]
[366357535,1750207846578,-151.0,0.00016438,2]
[366357536,1750207846588,-160.104728,0.00016438,2]
[366357537,1750207846598,-151.0,0.00016438,2]
[366357538,1750207846608,-151.0,0.00016438,2]
[366357539,1750207846618,-151.0,0.00016438,2]
[366357540,1750207846628,-490.0,0.00016438,2]
[366357541,1750207846637,-490.0,0.00016438,2]
[366357542,1750207846648,-490.0,0.00016438,2]
[366357543,1750207846658,-419.21916165,0.00016438,2]
[366357544,1750207846668,-490.0,0.00016438,2]
[366357545,1750207846678,-151.0,0.00016438,2]
[366357546,1750207846687,-151.0,0.00016438,2]
[366357547,1750207846698,-151.0,0.00016438,2]
[366357548,1750207846708,-151.0,0.00016438,2]
[366357549,1750207846717,-527.25,0.00016438,2]
[366357550,1750207846727,-490.0,0.00016438,2]
[366357551,1750207846736,-151.0,0.00016438,2]
[366357552,1750207846746,-151.0,0.00016438,2]
[366357553,1750207846756,-151.0,0.00016438,2]
[366357554,1750207846765,-151.276231,0.00016438,2]
[366357555,1750207846774,-490.0,0.00016438,2]
[366357556,1750207846784,-490.0,0.00016438,2]
[366357557,1750207846793,-490.0,0.00016438,2]
[366357558,1750207846803,-600.55683558,0.00016438,2]
[366357559,1750207846813,-490.0,0.00016438,2]
[366357560,1750207846822,-151.0,0.00016438,2]
[366357561,1750207846832,-151.0,0.00016438,2]
[366357562,1750207846841,-490.0,0.00016438,2]
[366357563,1750207846850,-490.0,0.00016438,2]
[366357564,1750207846861,-490.0,0.00016438,2]
[366357565,1750207846870,-490.0,0.00016438,2]
[366357566,1750207846880,-814.62,0.00016438,2]
[366357567,1750207846890,-490.0,0.00016438,2]
[366357568,1750207846900,-702.48,0.00016438,2]
[366357569,1750207846910,-1000.0,0.00016438,2]
[366357570,1750207846919,-490.0,0.00016438,2]
[366357571,1750207846929,-644.28,0.00016438,2]
[366357572,1750207846939,-490.0,0.00016438,2]
[366357573,1750207846948,-490.0,0.00016438,2]
[366357574,1750207846958,-490.0,0.00016438,2]
[366357575,1750207846968,-490.0,0.00016438,2]
[366357576,1750207846977,-490.0,0.00016438,2]
[366357577,1750207846987,-490.0,0.00016438,2]
[366357578,1750207846997,-490.0,0.00016438,2]
[366357579,1750207847007,-490.0,0.00016438,2]
[366357580,1750207847016,-490.0,0.00016438,2]
[366357581,1750207847026,-490.0,0.00016438,2]
[366357582,1750207847036,-205.3378028,0.00016438,2]
[366357583,1750207847046,-490.0,0.00016438,2]
[366357584,1750207847056,-490.0,0.00016438,2]
[366357585,1750207847065,-490.0,0.00016438,2]
[366357586,1750207847075,-897.14,0.00016438,2]
[366357587,1750207847085,-490.0,0.00016438,2]
[366357588,1750207847094,-490.0,0.00016438,2]
[366357589,1750207847104,-490.0,0.00016438,2]
[366357590,1750207847114,-490.0,0.00016438,2]
[366357591,1750207847124,-703.07,0.00016438,2]
[366357592,1750207847133,-490.0,0.00016438,2]
[366357593,1750207847143,-382.69372505,0.00016438,2]
[366357594,1750207847152,-490.0,0.00016438,2]
[366357595,1750207847162,-584.4,0.00016438,2]
[366357596,1750207847172,-667.01,0.00016438,2]
[366357597,1750207847181,-490.0,0.00016438,2]
[366357598,1750207847191,-490.0,0.00016438,2]
[366357599,1750207847202,-490.0,0.00016438,2]
[366357600,1750207847214,-461.15599807,0.00016438,2]
[366357601,1750207847236,-28.84400193,0.00016438,2]
[366357602,1750207847246,-490.0,0.00016438,2]
[366357603,1750207847256,-490.0,0.00016438,2]
[366357604,1750207847266,-669.8,0.00016438,2]
[366357605,1750207847277,-151.0,0.00016438,2]
[366357606,1750207847287,-151.0,0.00016438,2]
[366357607,1750207847297,-490.0,0.00016438,2]
[366357608,1750207847313,-162.020422,0.00016438,2]
[366357609,1750207847322,-490.0,0.00016438,2]
[366357610,1750207847332,-659.22,0.00016438,2]
[366357611,1750207847342,-490.0,0.00016438,2]
[366357612,1750207847352,-151.0,0.00016438,2]
[366357613,1750207847362,-311.71238267,0.00016438,2]
[366357614,1750207847372,-197.73622035,0.00016438,2]
[366357615,1750207847382,-151.0,0.00016438,2]
[366357616,1750207847392,-490.0,0.00016438,2]
[366357617,1750207847401,-151.0,0.00016438,2]
[366357618,1750207847411,-490.0,0.00016438,2]
[366357619,1750207847422,-151.0,0.00016438,2]
[366357620,1750207847432,-151.0,0.00016438,2]
[366357621,1750207847443,-490.0,0.00016438,2]
[366357622,1750207847453,-151.0,0.00016438,2]
[366357623,1750207847463,-490.0,0.00016438,2]
[366357624,1750207847474,-151.0,0.00016438,2]
[366357625,1750207847484,-151.0,0.00016438,2]
[366357626,1750207847494,-490.0,0.00016438,2]
[366357627,1750207847504,-490.0,0.00016438,2]
[366357628,1750207847514,-151.0,0.00016438,2]
[366357629,1750207847523,-151.0,0.00016438,2]
[366357630,1750207847534,-490.0,0.00016438,2]
[366357631,1750207847544,-490.0,0.00016438,2]
[366357632,1750207847554,-538.29,0.00016438,2]
[366357633,1750207847565,-490.0,0.00016438,2]
[366357634,1750207847574,-1628.86,0.00016438,2]
[366357635,1750207847584,-490.0,0.00016438,2]
[366357636,1750207847594,-943.32,0.00016438,2]
[366357637,1750207847605,-490.0,0.00016438,2]
[366357638,1750207847615,-490.0,0.00016438,2]
[366357639,1750207847626,-183.08582447,0.00016438,2]
[366357640,1750207847636,-490.0,0.00016438,2]
[366357641,1750207847646,-490.0,0.00016438,2]
[366357642,1750207847656,-490.0,0.00016438,2]
[366357643,1750207847667,-151.0,0.00016438,2]
[366357644,1750207847678,-151.0,0.00016438,2]
[366357645,1750207847688,-151.0,0.00016438,2]
[366357646,1750207847698,-1457.14,0.00016438,2]
[366357647,1750207847708,-490.0,0.00016438,2]
[366357648,1750207847718,-490.0,0.00016438,2]
[366357649,1750207847727,-490.0,0.00016438,2]
[366357650,1750207847737,-151.0,0.00016438,2]
[366357651,1750207847748,-151.0,0.00016438,2]
[366357652,1750207847757,-151.0,0.00016438,2]
[366357653,1750207847767,-534.75,0.00016438,2]
[366357654,1750207847777,-490.0,0.00016438,2]
[366357655,1750207847786,-490.0,0.00016438,2]
[366357656,1750207847796,-490.0,0.00016438,2]
[366357657,1750207847806,-582.54,0.00016438,2]
[366357658,1750207847816,-490.0,0.00016438,2]
[366357659,1750207847826,-647.68,0.00016438,2]
[366357660,1750207847836,-490.0,0.00016438,2]
[366357661,1750207847845,-490.0,0.00016438,2]
[366357662,1750207847855,-490.0,0.00016438,2]
[366357663,1750207847865,-531.89,0.00016438,2]
[366357664,1750207847875,-151.0,0.00016438,2]
[366357665,1750207847885,-191.437008,0.00016438,2]
[366357666,1750207847894,-528.71,0.00016438,2]
[366357667,1750207847904,-663.5,0.00016438,2]
[366357668,1750207847914,-490.0,0.00016438,2]
[366357669,1750207847924,-490.0,0.00016438,2]
[366357670,1750207847933,-490.0,0.00016438,2]
[366357671,1750207847943,-490.0,0.00016438,2]
[366357672,1750207847953,-490.0,0.00016438,2]
[366357673,1750207847963,-490.0,0.00016438,2]
[366357674,1750207847972,-775.07,0.00016438,2]
[366357675,1750207847982,-490.0,0.00016438,2]
[366357676,1750207847991,-490.0,0.00016438,2]
[366357677,1750207848001,-658.11946839,0.00016438,2]
[366357679,1750208171838,201.0,0.00012464,2]
[366357680,1750208214593,306.0241337,0.000246,120]
[366357681,1750208321878,202.0,0.00012464,2]
[366357685,1750208531869,201.0,0.00012784,2]
[366358174,1750208997952,278.97685118,0.00013,2]
[366358182,1750209032317,-201.0,0.00013133,2]
[366358183,1750209032327,-214.73,0.00013699,2]
[366358184,1750209032337,-250.0,0.00014444,2]
[366358185,1750209032347,-201.0,0.00014512,3]
[366358186,1750209032358,-250.0,0.00015162,2]
[366358187,1750209032367,-1000.0,0.00015365,2]
[366358188,1750209032377,-200.0,0.00015413,7]